bitfinex-derivatives/quotes_ETHF0:USTF0_20250928
["timestamp","ask_amount","ask_price","bid_price","bid_amount"]
[1759061791716,1.31292579,3988.4,3988.3,0.79191524]
[1759061792717,1.31292579,3988.4,3988.3,0.46991524]
[1759061793510,1.31292579,3988.4,3988.3,0.92100524]
[1759061793711,1.31292579,3988.4,3988.3,1.45060524]
[1759061794214,1.31292579,3988.4,3988.3,1.19860524]
[1759061794415,1.31292579,3988.4,3988.3,1.45060524]
[1759061795022,0.52942579,3988.4,3988.3,1.45060524]
[1759061795220,1.31292579,3988.4,3988.3,1.45060524]
[1759061795520,1.31292579,3988.4,3988.3,0.67751524]
[1759061797122,1.31292579,3988.4,3988.3,1.45060524]
[1759061798627,1.31292579,3988.4,3988.3,0.46991524]
[1759061798826,1.31292579,3988.4,3988.3,0.99951524]
[1759061799329,1.31292579,3988.4,3988.3,0.67751524]
[1759061801924,1.31292579,3988.4,3988.3,0.99951524]
[1759061802123,1.31292579,3988.4,3988.3,1.45060524]
[1759061804325,1.31293479,3988.4,3988.3,1.45060524]
[1759061805118,1.82231672,3988.4,3988.3,1.45060524]
[1759061805318,1.59581672,3988.4,3988.3,1.45060524]
[1759061806024,1.08643479,3988.4,3988.3,1.45060524]
[1759061806226,1.5959698,3988.4,3988.3,1.45060524]
[1759061806822,1.8224698,3988.4,3988.3,0.46991524]
[1759061807127,1.8224698,3988.4,3988.3,0.00181524]
[1759061807319,5.0302698,3988.4,3988.3,0.25381524]
[1759061807825,5.03027678,3988.4,3988.3,0.00181524]
[1759061814435,5.03027678,3988.4,3988.3,0.55951524]
[1759061814737,5.03027678,3988.4,3988.3,0.21791524]
[1759061815235,5.03027678,3988.4,3988.3,0.00181524]
[1759061817233,1.59597678,3988.4,3988.3,1.21140524]
[1759061818632,1.81537678,3988.4,3988.3,1.01231524]
[1759061818828,1.81537678,3988.4,3988.3,1.46340524]
[1759061819837,1.81537678,3988.4,3988.3,0.21151524]
[1759061820038,1.81537678,3988.4,3988.3,0.25381524]
[1759061820236,1.81537061,3988.4,3988.3,0.25381524]
[1759061820639,1.81537061,3988.4,3988.3,0.00181524]
[1759061820833,1.81537061,3988.4,3988.3,0.25381524]
[1759061821740,1.81537061,3988.4,3988.3,0.70490524]
[1759061821940,1.81537061,3988.4,3988.3,0.91460524]
[1759061822235,1.81537061,3988.4,3988.3,1.25620524]
[1759061822838,1.81537061,3988.4,3988.3,0.91460524]
[1759061823235,1.81537061,3988.4,3988.3,0.46351524]
[1759061824732,1.81537061,3988.4,3988.3,1.01231524]
[1759061825935,1.81537061,3988.4,3988.3,0.67071524]
[1759061826138,1.81537061,3988.4,3988.3,0.46351524]
[1759061826638,1.81537061,3988.4,3988.3,0.25381524]
[1759061828939,1.81537061,3988.4,3988.3,0.70490524]
[1759061829942,0.54931476,3988.0,3987.9,1.37226614]
[1759061830137,1.53747036,3988.0,3987.9,0.27707617]
[1759061830640,2.04730721,3988.0,3987.9,0.27707617]
[1759061831034,2.04952447,3988.0,3987.9,0.27898982]
[1759061833442,2.04952447,3988.0,3987.9,0.95142982]
[1759061833642,2.04952447,3988.0,3987.9,1.29432982]
[1759061835844,2.04952447,3988.0,3987.9,0.84318982]
[1759061836339,2.04952447,3988.0,3987.9,0.50028982]
[1759061836542,2.04952447,3988.0,3987.9,0.24828982]
[1759061836745,2.04952447,3988.0,3987.9,0.50028982]
[1759061836944,2.04952447,3988.0,3987.9,0.95142982]
[1759061837647,2.04952447,3988.0,3987.9,0.50028982]
[1759061837944,1.53968762,3988.0,3987.9,0.50028982]
[1759061838141,2.04951883,3988.0,3987.9,0.50028982]
[1759061838446,2.04951883,3988.0,3987.9,1.29432982]
[1759061839038,2.04951883,3988.0,3987.9,0.84318982]
[1759061845047,1.95133407,3988.0,3987.9,0.74500506]
[1759061845248,1.95133969,3988.0,3987.9,0.40210506]
[1759061846153,1.95133969,3988.0,3987.9,0.40510415]
[1759061846651,1.95133969,3988.0,3987.9,0.85624415]
[1759061846845,1.95133969,3988.0,3987.9,0.40510415]
[1759061847252,1.95133969,3988.0,3987.9,0.00299909]
[1759061847444,1.95133969,3988.0,3987.9,0.25499909]
[1759061851153,1.95133969,3988.0,3987.9,0.00299909]
[1759061851355,1.95133969,3988.0,3987.9,0.25499909]
[1759061851550,1.95133969,3988.0,3987.9,0.00299909]
[1759061851757,1.95133969,3988.0,3987.9,0.25499909]
[1759061851956,1.95133969,3988.0,3987.9,0.00299909]
[1759061856962,1.21315,3987.8,3987.7,0.252]
[1759061857164,1.80134243,3987.8,3987.7,0.252]
[1759061857962,1.80134243,3987.8,3987.7,0.25473637]
[1759061858661,1.80134243,3987.8,3987.7,0.00273637]
[1759061867673,1.80134243,3987.8,3987.7,1.00273637]
[1759061868573,1.80134243,3987.8,3987.7,1.75213637]
[1759061869474,1.80134243,3987.8,3987.7,2.20329637]
[1759061870877,1.80134243,3987.8,3987.7,1.75213637]
[1759061873571,1.80134243,3987.8,3987.7,1.46403637]
[1759061875375,1.80134243,3987.8,3987.7,1.25473637]
[1759061876276,1.80134243,3987.8,3987.7,1.00273637]
[1759061891483,1.80134243,3987.8,3987.7,1.22303637]
[1759061891879,1.80134243,3987.8,3987.7,1.55003637]
[1759061892275,1.80134243,3987.8,3987.7,1.22303637]
[1759061894080,1.80134243,3987.8,3987.7,1.55003637]
[1759061897088,1.80135682,3987.8,3987.7,1.75903637]
[1759061900591,1.80135682,3987.8,3987.7,1.43203637]
[1759061901591,1.80135682,3987.8,3987.7,1.22303637]
[1759061902993,1.80135682,3987.8,3987.7,1.55003637]
[1759061903293,1.80135682,3987.8,3987.7,1.75903637]
[1759061904391,1.80135682,3987.8,3987.7,1.43203637]
[1759061904690,1.80135682,3987.8,3987.7,1.74633637]
[1759061906494,1.80135588,3987.8,3987.7,1.74633637]
[1759061911706,1.80135588,3987.8,3987.7,1.43203637]
[1759061913206,0.67922,3987.2,3987.1,0.2262]
[1759061913406,5.01032588,3987.2,3987.1,0.2262]
[1759061913606,5.01032588,3987.2,3986.9,0.7925]
[1759061913607,1.02184,3987.0,3986.9,0.7925]
[1759061913810,1.02184,3987.0,3986.9,1.0061]
[1759061913811,1.92574588,3987.0,3986.9,1.0061]
[1759061914010,1.92574588,3987.0,3986.9,0.4398]
[1759061914200,1.92574588,3987.0,3986.9,0.25453463]
[1759061915107,1.92574588,3987.0,3986.9,0.00253463]
[1759061916711,1.92574588,3987.0,3986.9,0.75663463]
[1759061917898,1.84737121,3987.0,3986.9,0.22873463]
[1759061918303,1.84737121,3987.0,3986.9,0.00253463]
[1759061919015,1.92576501,3987.0,3986.9,0.00253463]
[1759061921910,1.92576501,3987.0,3986.9,0.75663463]
[1759061926012,1.92576082,3987.0,3986.9,0.75663463]
[1759061931807,1.92576082,3987.0,3986.9,0.44233463]
[1759061933520,1.92576082,3987.0,3986.9,0.22873463]
[1759061933718,1.92576082,3987.0,3986.9,0.00253463]
[1759061943021,0.45133,3986.2,3986.1,5.02218215]
[1759061943318,1.21124,3986.1,3986.0,0.70335]
[1759061943523,1.28962961,3986.1,3986.0,0.70335]
[1759061943723,1.28962961,3986.1,3986.0,0.93135]
[1759061944121,1.28962961,3986.1,3986.0,0.93373128]
[1759061945026,1.28962961,3986.1,3986.0,0.23038128]
[1759061945418,0.83828961,3986.1,3986.0,1.48354128]
[1759061945625,0.07838961,3986.1,3986.0,6.61314128]
[1759061945824,0.98902,3986.3,3986.2,0.7778]
[1759061946022,1.57790313,3986.3,3986.2,0.7778]
[1759061947226,1.80010313,3986.3,3986.2,1.22913]
[1759061948230,0.07839851,3986.3,3986.2,6.22913]
[1759061949521,0.07839851,3986.3,3986.2,9.43693]
[1759061949727,0.07839851,3986.3,3986.2,10.78411997]
[1759061949930,0.76766,3986.9,3986.8,0.89556]
[1759061950125,1.27808516,3986.9,3986.8,1.48106]
[1759061950325,1.49938516,3986.9,3986.8,1.48106]
[1759061951128,1.04813516,3986.9,3986.8,1.48106]
[1759061951524,3.2078,3987.1,3986.8,1.0298]
[1759061951833,4.40087,3987.6,3987.5,0.4293]
[1759061952030,4.91168181,3987.6,3987.5,0.6813]
[1759061954133,4.91168181,3987.6,3987.5,1.0002]
[1759061957634,4.91168181,3987.6,3987.5,1.45138]
[1759061958237,4.40087,3987.6,3987.5,1.45138]
[1759061958736,4.40087,3987.6,3987.5,1.0002]
[1759061959739,4.40087,3987.6,3987.5,0.6813]
[1759061960037,1.19307,3987.6,3987.5,0.6813]
[1759061960631,1.19307,3987.6,3987.5,0.4293]
[1759061960828,1.19307,3987.6,3987.5,0.6813]
[1759061962030,1.27144519,3987.6,3987.5,0.6813]
[1759061962226,1.27144519,3987.6,3987.5,1.13248]
[1759061962840,1.27144519,3987.6,3987.5,0.6813]
[1759061963832,1.27144519,3987.6,3987.5,1.13248]
[1759061964032,0.07837519,3987.6,3987.5,0.252]
[1759061964336,1.28264519,3987.6,3987.5,0.252]
[1759061965039,1.33938,3987.5,3987.4,0.2235]
[1759061965340,1.33938,3987.5,3987.4,0.4755]
[1759061965341,1.41775519,3987.5,3987.4,0.4755]
[1759061966539,0.8821,3987.3,3987.2,3.88252]
[1759061966745,0.8821,3987.3,3987.2,4.13452]
[1759061966746,1.28267519,3987.3,3987.2,4.13452]
[1759061966933,1.28267519,3987.3,3987.2,0.92672]
[1759061967135,1.20432,3987.2,3987.1,5.02218215]
[1759061967335,1.28269519,3987.2,3987.1,5.27418215]
[1759061968034,1.3395,3986.5,3986.4,0.2235]
[1759061968239,1.41788724,3986.5,3986.4,0.4755]
[1759061968439,1.41788724,3986.5,3986.4,0.252]
[1759061969429,0.66522,3986.3,3986.2,0.67482]
[1759061969634,1.28280724,3986.3,3986.2,0.4755]
[1759061970339,1.28280724,3986.3,3986.2,0.252]
[1759061971348,1.28280724,3986.3,3986.2,0.92683]
[1759061971349,0.83148724,3986.3,3986.2,0.92683]
[1759061971537,0.83148724,3986.3,3986.2,1.45863]
[1759061971837,1.28280724,3986.3,3986.2,1.20663]
[1759061972238,1.28280724,3986.3,3986.2,1.45863]
[1759061972936,1.20444,3986.1,3986.0,0.00238128]
[1759061973242,1.28282724,3986.1,3986.0,0.47788128]
[1759061973433,0.83148724,3986.1,3986.0,1.00968128]
[1759061973634,0.40058724,3986.1,3986.0,1.46103128]
[1759061974039,0.85192724,3986.1,3986.0,1.46103128]
[1759061974340,0.61448724,3986.1,3986.0,1.46103128]
[1759061975345,1.06582724,3986.1,3986.0,1.46103128]
[1759061975854,1.06583741,3986.1,3986.0,1.46103128]
[1759061977150,1.28283741,3986.1,3986.0,0.25438128]
[1759061977346,1.28283741,3986.1,3986.0,1.14583128]
[1759061977547,1.28283741,3986.1,3986.0,1.46103128]
[1759061979450,1.28283741,3986.1,3986.0,1.14583128]
[1759061979754,1.28283741,3986.1,3986.0,1.46103128]
[1759061981157,0.07839741,3986.1,3986.0,1.59063128]
[1759061981452,0.7531,3986.9,3986.8,0.7553]
[1759061981652,0.7531,3986.9,3986.8,1.45856]
[1759061982043,0.7531,3986.9,3986.8,1.0073]
[1759061982248,0.7531,3986.9,3986.8,0.6921]
[1759061982550,0.7531,3986.9,3986.8,1.14336]
[1759061983153,0.7531,3986.9,3986.8,0.89136]
[1759061983449,1.20435,3986.9,3986.8,0.92776]
[1759061984354,0.1351,3986.5,3986.4,3.65911]
[1759061984551,0.566,3986.5,3986.4,4.13561]
[1759061984752,0.8882,3986.5,3986.4,4.13561]
[1759061985354,0.8882,3986.5,3986.4,4.45081]
[1759061985558,0.8882,3986.5,3986.4,4.66741]
[1759061986856,0.8882,3986.5,3986.4,4.13561]
[1759061987055,0.8882,3986.5,3986.4,4.35221]
[1759061987249,0.8882,3986.5,3986.4,4.66741]
[1759061987448,0.7531,3986.5,3986.4,4.66741]
[1759061988256,0.5361,3986.5,3986.4,4.66741]
[1759061989561,0.66517,3986.7,3986.6,0.89138]
[1759061989859,0.98737,3986.7,3986.6,1.45858]
[1759061990358,1.20437,3986.7,3986.6,0.5387]
[1759061990653,0.8882,3986.5,3986.4,4.41441]
[1759061990958,0.8882,3986.5,3986.4,4.66641]
[1759061991459,0.7531,3986.5,3986.4,4.66641]
[1759061992056,0.5361,3986.5,3986.4,4.66641]
[1759061992359,0.3222,3986.7,3986.6,0.98998]
[1759061992656,0.3222,3986.7,3986.6,1.45858]
[1759061992849,1.20437,3986.7,3986.6,1.45858]
[1759061993256,1.28275628,3986.7,3986.6,1.45858]
[1759061993850,0.61448628,3986.7,3986.6,1.45858]
[1759061995261,0.84018628,3986.7,3986.6,1.45858]
[1759061996360,1.29145628,3986.7,3986.6,1.45858]
[1759061996959,0.84018628,3986.7,3986.6,1.45858]
[1759062001163,0.07838628,3986.7,3986.6,1.45858]
[1759062001372,0.85948628,3986.7,3986.6,1.45858]
[1759062002664,0.85948628,3986.7,3986.6,1.20658]
[1759062002869,0.85948628,3986.7,3986.6,1.45858]
[1759062003766,1.31075628,3986.7,3986.6,1.45858]
[1759062004664,1.31075628,3986.7,3986.6,0.89138]
[1759062004968,1.31075628,3986.7,3986.4,3.2078]
[1759062004969,1.36679,3986.5,3986.4,3.6591]
[1759062005162,1.36679,3986.5,3986.4,4.1398]
[1759062005369,1.44517587,3986.5,3986.4,4.1398]
[1759062005667,0.99388587,3986.5,3986.4,4.6742]
[1759062007367,0.40648587,3986.5,3986.4,4.6742]
[1759062007559,0.07838587,3986.5,3986.4,4.6742]
[1759062008257,0.07838587,3986.5,3986.4,6.0233858]
[1759062008459,4.11196,3987.7,3987.6,0.4351]
[1759062008658,4.6240493,3987.7,3987.6,0.6871]
[1759062008962,4.5009893,3987.7,3987.6,1.46627]
[1759062009162,4.9521493,3987.7,3987.6,1.0151]
[1759062010457,1.7443493,3987.7,3987.6,1.0151]
[1759062010669,1.7443493,3987.7,3987.6,0.6871]
[1759062010867,1.7443493,3987.7,3987.6,0.4807]
[1759062011170,0.7644,3987.1,3987.0,1.9122858]
[1759062011363,0.5395,3987.1,3987.0,1.48393]
[1759062011762,0.3119,3987.4,3987.3,0.4512]
[1759062011975,0.5395,3987.4,3987.3,1.4839]
[1759062012170,1.21559,3987.4,3987.3,0.4766]
[1759062015872,1.21559,3987.4,3987.3,0.252]
[1759062016863,1.21562,3987.2,3987.1,0.2246]
[1759062017068,1.21562,3987.2,3987.1,0.252]
[1759062019069,1.21563,3987.1,3987.0,0.2246]
[1759062019275,1.35204,3987.0,3986.9,3.2078]
[1759062019472,1.35204,3987.0,3986.9,3.6844]
[1759062020564,1.43041601,3987.0,3986.9,4.13565]
[1759062024377,0.97917601,3987.0,3986.9,4.68835]
[1759062025378,0.07837601,3987.0,3986.9,4.68835]
[1759062025980,0.42087601,3987.0,3986.9,4.68835]
[1759062029883,0.87211601,3987.0,3986.9,4.68835]
[1759062030081,0.42087601,3987.0,3986.9,4.68835]
[1759062033276,0.87211601,3987.0,3986.9,4.68835]
[1759062033472,0.52961601,3987.0,3986.9,4.68835]
[1759062033784,0.07837601,3987.0,3986.9,4.68835]
[1759062034083,0.42087601,3987.0,3986.9,4.68835]
[1759062034280,1.43961601,3987.0,3986.9,4.2371]
[1759062034487,0.98837601,3987.0,3986.9,4.68835]
[1759062034787,0.85427601,3987.0,3986.9,4.68835]
[1759062035280,0.85427601,3987.0,3986.9,6.0375358]
[1759062037185,0.85427601,3987.0,3986.9,5.7855358]
[1759062037685,0.85427601,3987.0,3986.9,6.0375358]
[1759062038088,1.43961601,3987.0,3986.9,5.5862858]
[1759062038282,1.95101558,3987.0,3986.9,3.6844]
[1759062038582,1.95101558,3987.0,3986.9,0.2246]
[1759062038773,1.95101558,3987.0,3986.9,0.4766]
[1759062038976,1.95101558,3987.0,3986.9,0.2246]
[1759062039381,1.95101558,3987.0,3986.9,0.4766]
[1759062041282,0.58977558,3987.0,3986.9,1.48055]
[1759062041587,0.07837601,3987.0,3986.9,1.48055]
[1759062041788,1.08681601,3987.0,3986.9,0.7773]
[1759062042001,1.95101062,3987.0,3986.9,1.0293]
[1759062042186,1.43961601,3987.0,3986.9,1.0293]
[1759062042493,1.95100762,3987.0,3986.9,1.0293]
[1759062042988,1.95099463,3987.0,3986.9,1.48055]
[1759062043191,1.95099463,3987.0,3986.9,1.0293]
[1759062043485,1.95099463,3987.0,3986.9,0.7773]
[1759062043691,1.95099463,3987.0,3986.9,1.48055]
[1759062043892,1.95099463,3987.0,3986.9,1.0293]
[1759062044193,1.95099463,3987.0,3986.9,1.48055]
[1759062044386,1.43961601,3987.0,3986.9,1.48055]
[1759062044885,1.43962003,3987.0,3986.9,1.0293]
[1759062045084,0.98838003,3987.0,3986.9,1.48055]
[1759062046092,1.43962003,3987.0,3986.9,1.48055]
[1759062046288,1.95097483,3987.0,3986.9,1.48055]
[1759062046492,1.43962003,3987.0,3986.9,1.48055]
[1759062048596,1.95097882,3987.0,3986.9,1.48055]
[1759062049196,1.95097912,3987.0,3986.9,1.48055]
[1759062049395,1.43962033,3987.0,3986.9,1.48055]
[1759062050494,1.43962033,3987.0,3986.9,1.0293]
[1759062051697,0.98838033,3987.0,3986.9,1.48055]
[1759062051892,0.85428033,3987.0,3986.9,1.48055]
[1759062053300,1.30552033,3987.0,3986.9,1.22855]
[1759062053498,1.30552033,3987.0,3986.9,1.48055]
[1759062053798,1.43912033,3987.0,3986.9,1.0293]
[1759062055300,1.95056299,3987.0,3986.9,1.0293]
[1759062055593,1.43912033,3987.0,3986.9,1.0293]
[1759062057393,1.95056963,3987.0,3986.9,1.0293]
[1759062060905,1.95056963,3987.0,3986.9,0.6959]
[1759062061202,1.95056963,3987.0,3986.9,0.252]
[1759062061903,1.20806,3986.8,3986.7,1.3491858]
[1759062062202,1.20806,3986.8,3986.1,3.2078]
[1759062062203,0.45131,3986.4,3986.3,1.3491858]
[1759062062398,0.45131,3986.4,3986.3,1.6011858]
[1759062062399,1.28649033,3986.4,3986.3,1.6011858]
[1759062063102,1.28649033,3986.4,3986.3,0.252]
[1759062065494,0.87822,3986.3,3986.2,1.3491858]
[1759062065700,1.20813,3986.2,3986.1,3.2078]
[1759062065904,1.28651033,3986.2,3986.1,3.4598]
[1759062066105,1.07701033,3986.2,3986.1,4.2081]
[1759062066409,1.28651033,3986.2,3986.1,4.2081]
[1759062069099,0.83518033,3986.2,3986.1,4.2081]
[1759062069304,0.83518033,3986.2,3986.1,4.65944]
[1759062069605,1.28651033,3986.2,3986.1,4.2081]
[1759062070104,0.83518033,3986.2,3986.1,3.9561]
[1759062070409,0.62568033,3986.2,3986.1,4.65944]
[1759062070715,0.07838033,3986.2,3986.1,4.65944]
[1759062070904,0.40538033,3986.2,3986.1,4.65944]
[1759062071400,0.07838033,3986.2,3986.1,4.65944]
[1759062071608,0.40538033,3986.2,3986.1,4.65944]
[1759062074517,0.85128033,3986.2,3986.1,4.2081]
[1759062075207,1.30261033,3986.2,3986.1,3.9561]
[1759062075409,1.30261033,3986.2,3986.1,3.8972]
[1759062076116,1.30261033,3986.2,3986.1,4.2079]
[1759062076316,1.30261033,3986.2,3986.1,4.65924]
[1759062076919,0.62478033,3986.2,3986.1,4.65924]
[1759062077616,1.07611033,3986.2,3986.1,4.65924]
[1759062077811,0.07838033,3986.2,3986.1,4.65924]
[1759062078008,0.7783,3986.5,3986.4,0.45131]
[1759062078207,0.52968246,3986.5,3986.4,1.013]
[1759062078408,0.52968246,3986.5,3986.4,1.46431]
[1759062078711,0.85668246,3986.5,3986.4,1.46431]
[1759062079315,1.42858246,3986.5,3986.4,1.013]
[1759062079812,1.30258246,3986.5,3986.4,1.013]
[1759062080616,0.07839246,3986.5,3986.4,1.46431]
[1759062081816,0.07838707,3986.5,3986.4,1.46431]
[1759062082418,0.40538707,3986.5,3986.4,1.46431]
[1759062082619,0.85667707,3986.5,3986.4,1.46431]
[1759062082823,1.07607707,3986.5,3986.4,1.46431]
[1759062083122,1.07607806,3986.5,3986.4,1.46431]
[1759062083519,0.85667806,3986.5,3986.4,1.013]
[1759062083721,1.41147806,3986.5,3986.4,0.761]
[1759062083910,1.41147806,3986.5,3986.4,1.013]
[1759062086422,1.06987806,3986.5,3986.4,1.013]
[1759062086617,0.07838806,3986.5,3986.4,1.46431]
[1759062087123,0.41818806,3986.5,3986.4,1.46431]
[1759062088015,0.86947806,3986.5,3986.4,1.46431]
[1759062088215,0.86947806,3986.5,3986.4,1.013]
[1759062088510,1.08267806,3986.5,3986.4,1.013]
[1759062089915,1.42427806,3986.5,3986.4,1.013]
[1759062090625,1.21413,3986.2,3986.1,8.22998215]
[1759062090928,1.29251806,3986.2,3986.1,8.44788215]
[1759062091225,1.29251806,3986.2,3986.1,8.69988215]
[1759062092723,1.29251806,3986.2,3986.1,3.6777]
[1759062093224,1.29251806,3986.2,3986.1,4.2149]
[1759062093619,1.29251806,3986.2,3986.1,4.66624]
[1759062093620,0.07838806,3986.2,3986.1,4.66624]
[1759062093825,0.07838806,3986.2,3986.1,4.34684]
[1759062094025,0.79112,3986.3,3986.2,0.88703]
[1759062094224,1.08271468,3986.3,3986.2,0.4357]
[1759062094427,1.08271468,3986.3,3986.2,0.7551]
[1759062094831,1.29251468,3986.3,3986.2,0.7551]
[1759062095330,1.29251468,3986.3,3986.2,0.4357]
[1759062095518,1.29251468,3986.3,3986.2,0.2179]
[1759062095919,1.29251468,3986.3,3986.2,0.4699]
[1759062096326,1.29251468,3986.3,3986.2,0.252]
[1759062098422,1.29251468,3986.3,3986.1,3.2078]
[1759062098423,1.21413,3986.2,3986.1,3.2078]
[1759062098622,1.29252468,3986.2,3986.1,3.4598]
[1759062100337,1.29252468,3986.2,3986.1,3.6777]
[1759062101034,1.29252468,3986.2,3986.1,4.2149]
[1759062101235,1.29252468,3986.2,3986.1,4.66624]
[1759062101626,1.29252468,3986.2,3986.1,3.4257]
[1759062101827,1.21414,3986.1,3986.0,0.22028128]
[1759062102129,1.29253468,3986.1,3986.0,0.25438128]
[1759062102529,1.29253468,3986.1,3986.0,0.47228128]
[1759062102730,1.29253468,3986.1,3986.0,0.79168128]
[1759062102936,0.84119468,3986.1,3986.0,0.79168128]
[1759062103136,0.84119468,3986.1,3986.0,1.46083128]
[1759062103631,1.29253468,3986.1,3986.0,1.46083128]
[1759062103827,0.07839468,3986.1,3986.0,1.46083128]
[1759062104030,0.45131,3986.4,3986.3,0.4357]
[1759062104329,1.38165888,3986.4,3986.3,1.0071]
[1759062104525,1.59485888,3986.4,3986.3,1.0071]
[1759062109038,1.59485888,3986.4,3986.3,1.45842]
[1759062109631,1.08270439,3986.4,3986.3,1.45842]
[1759062109935,0.63139122,3986.4,3986.3,1.45842]
[1759062110635,1.08270122,3986.4,3986.3,1.45842]
[1759062111837,1.08270122,3986.4,3986.3,1.0071]
[1759062113239,1.59493659,3986.4,3986.3,1.0071]
[1759062113434,1.80473659,3986.4,3986.3,1.0071]
[1759062114547,1.80473659,3986.4,3986.3,1.45842]
[1759062115945,1.80473659,3986.4,3986.3,1.0071]
[1759062118543,1.29250122,3986.4,3986.3,1.0071]
[1759062118747,1.22282,3986.3,3986.2,3.2078]
[1759062119046,1.81363407,3986.3,3986.2,3.4598]
[1759062120046,1.81363407,3986.3,3986.2,3.6745]
[1759062120246,1.81363407,3986.3,3986.2,4.67233]
[1759062121149,1.04213407,3986.3,3986.2,4.221]
[1759062121646,1.04213407,3986.3,3986.2,4.67233]
[1759062121842,1.37713407,3986.3,3986.2,4.67233]
[1759062122044,0.92581407,3986.3,3986.2,4.67233]
[1759062122344,1.37713407,3986.3,3986.2,4.67233]
[1759062122742,1.58963407,3986.3,3986.2,4.67233]
[1759062123243,0.92259,3987.5,3987.4,0.2147]
[1759062123444,0.62589134,3987.5,3987.4,1.0132]
[1759062123642,0.75079134,3987.5,3987.4,2.3670968]
[1759062123945,1.42597134,3987.5,3987.4,1.6058968]
[1759062124139,1.42597134,3987.5,3987.4,0.252]
[1759062125836,0.2125,3987.2,3987.1,3.4225]
[1759062126041,0.7715,3987.2,3987.1,3.6745]
[1759062126242,0.7715,3987.2,3987.1,4.12573]
[1759062126749,1.22272,3987.2,3987.1,0.252]
[1759062127041,0.7715,3987.2,3987.1,0.252]
[1759062127244,0.7715,3987.2,3987.1,0.70323]
[1759062127447,0.335,3987.2,3987.1,4.67223]
[1759062127642,0.2125,3987.5,3987.4,1.21239]
[1759062127847,0.2125,3987.5,3987.4,1.46439]
[1759062128247,0.5475,3987.5,3987.4,1.46439]
[1759062128647,0.335,3987.8,3987.6,0.45116]
[1759062128848,0.335,3987.8,3987.1,3.2078]
[1759062128849,0.5475,3987.8,3987.7,1.46436]
[1759062130050,0.335,3987.8,3987.7,1.46436]
[1759062130440,0.33391726,3988.0,3987.9,1.22634]
[1759062130649,0.33391726,3988.0,3987.9,1.47834]
[1759062131748,0.55681726,3988.0,3987.9,1.47834]
[1759062132047,1.00793726,3988.0,3987.9,1.0272]
[1759062132251,1.36143726,3988.0,3987.9,1.0272]
[1759062132550,1.22906,3987.7,3987.6,0.2188]
[1759062132748,1.22906,3987.7,3987.6,0.4708]
[1759062133342,1.22906,3987.7,3987.6,0.252]
[1759062135049,1.22907,3987.6,3987.5,3.2078]
[1759062135247,1.22907,3987.6,3987.5,3.4598]
[1759062141860,1.22907,3987.6,3987.5,3.6786]
[1759062144755,1.22907,3987.6,3987.5,3.9055]
[1759062145057,0.7779,3987.6,3987.5,4.226]
[1759062146359,1.22907,3987.6,3987.5,4.226]
[1759062146950,0.7779,3987.6,3987.5,4.226]
[1759062147960,0.7779,3987.6,3987.5,4.67718]
[1759062149259,1.30743845,3987.6,3987.5,4.226]
[1759062149453,1.30743845,3987.6,3987.5,3.4598]
[1759062151360,1.30743845,3987.6,3987.5,3.2078]
[1759062151563,1.19502,3987.2,3987.1,0.7549]
[1759062151763,1.27339316,3987.2,3987.1,1.0069]
[1759062152453,0.82217316,3987.2,3987.1,1.45813]
[1759062152650,0.60137316,3987.2,3987.1,1.45813]
[1759062153561,0.07837316,3987.2,3987.1,1.45813]
[1759062156465,0.38887316,3987.2,3987.1,1.45813]
[1759062159667,0.60137316,3987.2,3987.1,1.45813]
[1759062160168,0.38887316,3987.2,3987.1,1.45813]
[1759062166572,0.38887316,3987.2,3987.1,2.8120268]
[1759062168171,0.3105,3987.2,3987.1,2.8120268]
[1759062168372,0.38887187,3987.2,3987.1,2.8120268]
[1759062170382,0.38887188,3987.2,3987.1,2.8120268]
[1759062170783,0.38887188,3987.2,3987.1,2.5600268]
[1759062171082,0.38887188,3987.2,3987.1,2.8120268]
[1759062174473,0.77273,3987.1,3987.0,4.5616968]
[1759062174678,1.28300188,3987.1,3987.0,3.4598]
[1759062175072,1.28300188,3987.1,3987.0,3.2078]
[1759062175271,1.28300188,3987.1,3987.0,3.4598]
[1759062175575,1.79480699,3987.1,3987.0,3.4598]
[1759062176768,0.4543,3987.0,3986.5,8.22998215]
[1759062176971,0.7534,3986.6,3986.5,3.4165]
[1759062177279,0.83177188,3986.6,3986.5,3.8889]
[1759062177479,0.83177188,3986.6,3986.5,4.2108]
[1759062177979,1.28305188,3986.6,3986.5,4.66209]
[1759062178279,1.28305188,3986.6,3986.5,3.8889]
[1759062179076,1.28305188,3986.6,3986.5,4.34019]
[1759062179479,1.28305188,3986.6,3986.5,3.6369]
[1759062179678,1.28305188,3986.6,3986.5,3.8889]
[1759062180474,1.28305188,3986.6,3986.5,4.34019]
[1759062180672,1.28305188,3986.6,3986.5,4.66209]
[1759062181178,1.28305188,3986.6,3986.5,4.2108]
[1759062181482,1.28305188,3986.6,3986.5,4.66209]
[1759062182078,1.28305188,3986.6,3986.5,4.2108]
[1759062182276,1.28305188,3986.6,3986.5,3.9588]
[1759062182477,1.28305188,3986.6,3986.5,4.2108]
[1759062182673,1.28305188,3986.6,3986.5,3.6369]
[1759062182977,1.28305188,3986.6,3986.5,3.8889]
[1759062183178,1.28305188,3986.6,3986.5,4.2108]
[1759062183979,1.28305188,3986.6,3986.5,1.003]
[1759062184381,0.07837188,3986.6,3986.5,1.51839]
[1759062184590,0.45124,3987.0,3986.6,0.3219]
[1759062184879,0.77274,3987.0,3986.9,0.751]
[1759062185178,1.57680023,3987.0,3986.9,1.003]
[1759062187882,1.70960023,3987.0,3986.9,1.003]
[1759062188377,1.92650023,3987.0,3986.9,1.003]
[1759062189883,1.92650023,3987.0,3986.9,0.252]
[1759062190083,0.45128,3986.6,3986.5,0.45129]
[1759062190284,0.96156524,3986.6,3986.5,0.91199]
[1759062190582,1.28626524,3986.6,3986.5,1.46639]
[1759062190976,1.28626805,3986.6,3986.5,1.46639]
[1759062191578,1.28626805,3986.6,3986.5,0.4254]
[1759062191777,1.28626805,3986.6,3986.5,0.6774]
[1759062194787,1.28626805,3986.6,3986.5,1.0151]
[1759062195687,1.06936805,3986.6,3986.5,1.0151]
[1759062196079,0.40308805,3986.6,3986.5,1.46639]
[1759062196281,0.07838805,3986.6,3986.5,1.46639]